fUSD/lending_fUSD_20240121
["ID","MTS","AMOUNT","RATE_DAILY","PERIOD"]
[312393506,1705858260505,-1000.0,0.00040588,10]
[312393507,1705858260515,-500.0,0.000406,16]
[312393508,1705858260526,-300.0,0.000406,7]
[312393509,1705858260536,-150.39788915,0.000406,30]
[312393510,1705858260546,-2010.4,0.0004064,2]
[312393511,1705858260555,-205.0,0.0004065,2]
[312393512,1705858260565,-205.0,0.0004065,2]
[312393513,1705858260574,-152.14113685,0.00040673,30]
[312393514,1705858260583,-317.9,0.0004068,2]
[312393515,1705858260592,-5301.01,0.000407,7]
[312393516,1705858260601,-8995.51,0.000407,7]
[312393517,1705858260610,-500.0,0.000407,16]
[312393518,1705858260619,-1000.0,0.00040733,2]
[312393519,1705858260628,-378.45529806,0.00040745,30]
[312393520,1705858260637,-158.04797982,0.0004076,30]
[312393521,1705858260647,-2100.0,0.00040764,2]
[312393522,1705858260656,-500.0,0.00040767,7]
[312393523,1705858260666,-152.0,0.0004077,5]
[312393524,1705858260675,-1510.0,0.0004078,30]
[312393525,1705858260684,-369.0,0.0004078,30]
[312393526,1705858260693,-1000.0,0.000408,40]
[312393527,1705858260703,-25414.03847296,0.000408,3]
[312393528,1705858260712,-18842.04,0.000408,7]
[312393529,1705858260721,-500.0,0.000408,16]
[312393530,1705858260730,-9781.253776,0.00040846,2]
[312393531,1705858260739,-254.181053,0.00040846,2]
[312393532,1705858260749,-213.321367,0.00040846,2]
[312393533,1705858260758,-299.5184,0.00040846,7]
[312393534,1705858260767,-263.923633,0.0004085,2]
[312393535,1705858260776,-305.35588113,0.00040896,30]
[312393536,1705858260786,-991.102184,0.000409,16]
[312393537,1705858260795,-152.53682314,0.00040968,30]
[312393538,1705858260804,-150.5,0.0004097,30]
[312393539,1705858260814,-268.09,0.0004097,30]
[312393540,1705858260823,-152.14113685,0.00040975,30]
[312393541,1705858260832,-150.5,0.0004098,30]
[312393542,1705858260842,-150.5,0.0004098,30]
[312393543,1705858260852,-243.26,0.0004098,30]
[312393544,1705858260861,-400.0,0.00040986,120]
[312393545,1705858260871,-200.0,0.00040987,31]
[312393546,1705858260880,-200.0,0.00040987,33]
[312393547,1705858260890,-150.5,0.0004099,30]
[312393548,1705858260899,-150.5,0.0004099,30]
[312393549,1705858260910,-150.5,0.0004099,30]
[312393550,1705858260919,-43014.0,0.0004099,3]
[312393551,1705858260930,-100000.0,0.00041,11]
[312393552,1705858260939,-3441.72254948,0.00041,4]
[312393553,1705858260949,-300.0,0.00041,13]
[312393554,1705858260958,-1001.0,0.00041,5]
[312393555,1705858260968,-320.0,0.00041,2]
[312393556,1705858260977,-250.0,0.00041,30]
[312393557,1705858260986,-1000.0,0.00041,30]
[312393558,1705858260996,-300.0,0.00041,4]
[312393559,1705858261006,-1774.60171238,0.00041,120]
[312393560,1705858261015,-2000.00155511,0.00041,30]
[312393561,1705858261025,-1565.0,0.00041,3]
[312393562,1705858261036,-300.0,0.00041,11]
[312393563,1705858261049,-150.0,0.00041,16]
[312393564,1705858261059,-152.14113685,0.00041055,30]
[312393565,1705858261068,-150.24240815,0.0004106,5]
[312393566,1705858261078,-350.0,0.00041068,120]
[312393567,1705858261089,-378.45529806,0.00041077,30]
[312393568,1705858261100,-305.35588113,0.00041088,30]
[312393569,1705858261110,-152.53682314,0.00041093,30]
[312393570,1705858261120,-151.13019096,0.00041093,30]
[312393571,1705858261130,-155.0,0.00041095,4]
[312393572,1705858261140,-479.37643247,0.00041095,15]
[312393573,1705858261151,-7497.97934082,0.00041095,4]
[312393574,1705858261161,-5332.75480064,0.00041095,4]
[312393575,1705858261172,-76015.28851702,0.00041095,4]
[312393576,1705858261181,-597.66,0.00041095,30]
[312393577,1705858261190,-500.0,0.00041095,31]
[312393578,1705858261200,-500.0,0.00041095,30]
[312393579,1705858261210,-500.0,0.00041095,31]
[312393580,1705858261219,-500.0,0.00041095,30]
[312393581,1705858261228,-500.0,0.00041095,30]
[312393582,1705858261237,-500.0,0.00041095,31]
[312393583,1705858261246,-500.0,0.00041095,30]
[312393584,1705858261256,-536.07979362,0.00041095,31]
[312393585,1705858261266,-500.0,0.00041095,2]
[312393586,1705858261275,-500.0,0.00041095,31]
[312393587,1705858261285,-500.0,0.00041095,31]
[312393588,1705858261294,-500.0,0.00041095,30]
[312393589,1705858261304,-2000.0,0.00041095,31]
[312393590,1705858261313,-764.23766,0.00041095,31]
[312393591,1705858261323,-1000.00000001,0.00041095,30]
[312393592,1705858261332,-500.0,0.00041095,31]
[312393593,1705858261342,-500.0,0.00041095,31]
[312393594,1705858261352,-289.7778183,0.00041095,31]
[312393595,1705858261361,-500.0,0.00041095,31]
[312393596,1705858261371,-436.690868,0.00041095,31]
[312393597,1705858261381,-501.75147196,0.00041095,31]
[312393598,1705858261390,-500.0,0.00041095,31]
[312393599,1705858261402,-500.0,0.00041095,31]
[312393600,1705858261411,-500.0,0.00041095,31]
[312393601,1705858261421,-500.0,0.00041095,31]
[312393602,1705858261431,-500.0,0.00041095,31]
[312393603,1705858261441,-500.0,0.00041095,31]
[312393604,1705858261451,-576.63537972,0.00041095,31]
[312393605,1705858261467,-500.0,0.00041095,31]
[312393606,1705858261478,-500.0,0.00041095,31]
[312393607,1705858261487,-500.0,0.00041095,31]
[312393608,1705858261497,-500.0,0.00041095,31]
[312393609,1705858261508,-500.0,0.00041095,31]
[312393610,1705858261517,-503.11534558,0.00041095,31]
[312393611,1705858261526,-500.0,0.00041095,31]
[312393612,1705858261535,-500.0,0.00041095,31]
[312393613,1705858261545,-500.0,0.00041095,31]
[312393614,1705858261554,-500.0,0.00041095,31]
[312393615,1705858261563,-505.92294275,0.00041095,31]
[312393616,1705858261572,-500.0,0.00041095,31]
[312393617,1705858261582,-500.0,0.00041095,31]
[312393618,1705858261593,-500.0,0.00041095,31]
[312393619,1705858261603,-500.0,0.00041095,31]
[312393620,1705858261613,-511.55158768,0.00041095,31]
[312393621,1705858261622,-500.0,0.00041095,31]
[312393622,1705858261634,-526.45473645,0.00041095,31]
[312393623,1705858261643,-500.0,0.00041095,31]
[312393624,1705858261653,-504.96276785,0.00041095,31]
[312393625,1705858261664,-500.0,0.00041095,31]
[312393626,1705858261674,-557.12838988,0.00041095,31]
[312393627,1705858261685,-500.0,0.00041095,31]
[312393628,1705858261695,-503.12911351,0.00041095,31]
[312393629,1705858261707,-500.0,0.00041095,31]
[312393630,1705858261717,-500.0,0.00041095,31]
[312393631,1705858261728,-512.04105181,0.00041095,31]
[312393632,1705858261738,-500.0,0.00041095,31]
[312393633,1705858261748,-500.0,0.00041095,31]
[312393634,1705858261759,-500.0,0.00041095,31]
[312393635,1705858261769,-567.21958838,0.00041095,31]
[312393636,1705858261779,-500.0,0.00041095,31]
[312393637,1705858261789,-500.0,0.00041095,31]
[312393638,1705858261799,-601.14992919,0.00041095,31]
[312393639,1705858261808,-500.0,0.00041095,31]
[312393640,1705858261819,-500.0,0.00041095,31]
[312393641,1705858261829,-500.0,0.00041095,31]
[312393642,1705858261839,-500.0,0.00041095,31]
[312393643,1705858261848,-328.44229645,0.00041095,31]
[312393644,1705858261857,-500.0,0.00041095,31]
[312393645,1705858261867,-500.0,0.00041095,31]
[312393646,1705858261876,-567.73904991,0.00041095,31]
[312393647,1705858261885,-520.21736162,0.00041095,31]
[312393648,1705858261894,-500.0,0.00041095,31]
[312393649,1705858261904,-525.50609111,0.00041095,31]
[312393650,1705858261914,-500.0,0.00041095,31]
[312393651,1705858261923,-500.0,0.00041095,31]
[312393652,1705858261933,-500.0,0.00041095,31]
[312393653,1705858261943,-500.0,0.00041095,31]
[312393654,1705858261953,-512.01563926,0.00041095,31]
[312393655,1705858261963,-504.43661592,0.00041095,31]
[312393656,1705858261973,-500.0,0.00041095,31]
[312393657,1705858261982,-500.0,0.00041095,31]
[312393658,1705858261992,-510.0,0.00041095,120]
[312393659,1705858262001,-501.24823304,0.00041095,31]
[312393660,1705858262010,-500.0,0.00041095,31]
[312393661,1705858262219,-623.55079853,0.00041095,31]
[312393662,1705858262233,-500.0,0.00041095,31]
[312393663,1705858262243,-500.0,0.00041095,31]
[312393664,1705858262253,-500.0,0.00041095,31]
[312393665,1705858262263,-500.0,0.00041095,31]
[312393666,1705858262274,-162.9522713,0.00041095,31]
[312393667,1705858262284,-500.0,0.00041095,31]
[312393668,1705858262293,-500.0,0.00041095,31]
[312393669,1705858262306,-500.0,0.00041095,31]
[312393670,1705858262316,-500.0,0.00041095,31]
[312393671,1705858262325,-500.0,0.00041095,31]
[312393672,1705858262334,-500.0,0.00041095,31]
[312393673,1705858262343,-500.0,0.00041095,31]
[312393674,1705858262353,-178.11456844,0.00041095,31]
[312393675,1705858262362,-845.58,0.00041095,31]
[312393676,1705858262371,-492.21351551,0.00041095,31]
[312393677,1705858262380,-500.0,0.00041095,31]
[312393678,1705858262390,-500.0,0.00041095,31]
[312393679,1705858262400,-500.0,0.00041095,31]
[312393680,1705858262409,-500.0,0.00041095,31]
[312393681,1705858262419,-500.0,0.00041095,31]
[312393682,1705858262429,-800.59,0.00041095,31]
[312393683,1705858262440,-500.0,0.00041095,31]
[312393684,1705858262451,-500.0,0.00041095,31]
[312393685,1705858262461,-500.0,0.00041095,31]
[312393686,1705858262471,-500.0,0.00041095,31]
[312393687,1705858262480,-526.70571328,0.00041095,31]
[312393688,1705858262490,-500.0,0.00041095,31]
[312393689,1705858262499,-508.17,0.00041095,31]
[312393690,1705858262509,-500.0,0.00041095,31]
[312393691,1705858262519,-521.21714697,0.00041095,31]
[312393692,1705858262528,-526.82,0.00041095,31]
[312393693,1705858262540,-608.82,0.00041095,31]
[312393694,1705858262549,-222.16317686,0.00041095,31]
[312393695,1705858262559,-500.0,0.00041095,31]
[312393696,1705858262570,-1000.0,0.00041095,31]
[312393697,1705858262580,-500.0,0.00041095,31]
[312393698,1705858262592,-500.0,0.00041095,31]
[312393699,1705858262601,-500.0,0.00041095,31]
[312393700,1705858262611,-500.0,0.00041095,31]
[312393701,1705858262621,-500.0,0.00041095,31]
[312393702,1705858262630,-523.92382171,0.00041095,31]
[312393703,1705858262639,-500.0,0.00041095,31]
[312393704,1705858262649,-669.62,0.00041095,31]
[312393705,1705858262658,-500.0,0.00041095,31]
[312393706,1705858262669,-500.0,0.00041095,31]
[312393707,1705858262679,-353.70511161,0.00041095,31]
[312393708,1705858262689,-500.0,0.00041095,31]
[312393709,1705858262700,-500.0,0.00041095,31]
[312393710,1705858262710,-500.0,0.00041095,31]
[312393711,1705858262719,-500.0,0.00041095,31]
[312393712,1705858262729,-500.0,0.00041095,31]
[312393713,1705858262739,-500.0,0.00041095,31]
[312393714,1705858262749,-1249.61,0.00041095,31]
[312393715,1705858262759,-1249.61,0.00041095,31]
[312393716,1705858262770,-1249.61,0.00041095,31]
[312393717,1705858262779,-1249.61,0.00041095,31]
[312393718,1705858262789,-1249.61,0.00041095,31]
[312393719,1705858262800,-1249.61,0.00041095,31]
[312393720,1705858262810,-500.0,0.00041095,31]
[312393721,1705858262820,-1249.61,0.00041095,31]
[312393722,1705858262830,-1249.61,0.00041095,31]
[312393723,1705858262841,-529.79,0.00041095,31]
[312393724,1705858262850,-1249.61,0.00041095,31]
[312393725,1705858262860,-1249.61,0.00041095,31]
[312393726,1705858262870,-1249.61,0.00041095,31]
[312393727,1705858262880,-500.0,0.00041095,31]
[312393728,1705858262890,-1249.61,0.00041095,31]
[312393729,1705858262899,-500.0,0.00041095,31]
[312393730,1705858262910,-500.0,0.00041095,31]
[312393731,1705858262919,-1249.61,0.00041095,31]
[312393732,1705858262929,-1249.61,0.00041095,31]
[312393733,1705858262939,-1950.75,0.00041095,31]
[312393734,1705858262949,-1249.61,0.00041095,31]
[312393735,1705858262958,-1249.61,0.00041095,31]
[312393736,1705858262968,-1249.61,0.00041095,31]
[312393737,1705858262978,-1249.61,0.00041095,31]
[312393738,1705858262988,-1249.61,0.00041095,31]
[312393739,1705858262998,-1249.61,0.00041095,31]
[312393740,1705858263008,-500.0,0.00041095,31]
[312393741,1705858263018,-1249.61,0.00041095,31]
[312393742,1705858263028,-1249.61,0.00041095,31]
[312393743,1705858263038,-215.16957685,0.00041095,31]
[312393744,1705858263052,-1249.61,0.00041095,31]
[312393745,1705858263063,-1249.78276,0.00041095,31]
[312393746,1705858263072,-500.0,0.00041095,31]
[312393747,1705858263085,-500.0,0.00041095,31]
[312393748,1705858263095,-500.0,0.00041095,31]
[312393749,1705858263106,-500.0,0.00041095,31]
[312393750,1705858263116,-500.0,0.00041095,31]
[312393751,1705858263126,-500.0,0.00041095,31]
[312393752,1705858263136,-500.0,0.00041095,31]
[312393753,1705858263145,-535.84376228,0.00041095,31]
[312393754,1705858263155,-500.0,0.00041095,31]
[312393755,1705858263166,-500.0,0.00041095,31]
[312393756,1705858263176,-500.0,0.00041095,31]
[312393757,1705858263186,-739.79,0.00041095,31]
[312393758,1705858263196,-500.0,0.00041095,31]
[312393759,1705858263207,-500.0,0.00041095,31]
[312393760,1705858263217,-1000.0,0.00041095,2]
[312393761,1705858263226,-500.0,0.00041095,31]
[312393762,1705858263237,-500.0,0.00041095,31]
[312393763,1705858263246,-500.0,0.00041095,31]
[312393764,1705858263255,-612.53,0.00041095,31]
[312393765,1705858263265,-559.97,0.00041095,31]
[312393766,1705858263274,-562.5,0.00041095,31]
[312393767,1705858263284,-583.04,0.00041095,31]
[312393768,1705858263294,-500.0,0.00041095,31]
[312393769,1705858263304,-500.0,0.00041095,31]
[312393770,1705858263314,-578.47,0.00041095,31]
[312393771,1705858263323,-500.0,0.00041095,31]
[312393772,1705858263332,-692.97,0.00041095,31]
[312393773,1705858263341,-500.0,0.00041095,31]
[312393774,1705858263351,-500.0,0.00041095,31]
[312393775,1705858263360,-500.0,0.00041095,31]
[312393776,1705858263369,-500.0,0.00041095,31]
[312393777,1705858263378,-500.0,0.00041095,31]
[312393778,1705858263387,-500.0,0.00041095,31]
[312393779,1705858263396,-368.27223876,0.00041095,31]
[312393780,1705858263406,-500.0,0.00041095,31]
[312393781,1705858263415,-794.24,0.00041095,31]
[312393782,1705858263425,-500.0,0.00041095,31]
[312393783,1705858263436,-500.0,0.00041095,31]
[312393784,1705858263447,-500.0,0.00041095,31]
[312393785,1705858263459,-500.0,0.00041095,31]
[312393786,1705858263469,-500.0,0.00041095,31]
[312393787,1705858263479,-500.0,0.00041095,31]
[312393788,1705858263489,-573.24,0.00041095,31]
[312393789,1705858263501,-500.0,0.00041095,31]
[312393790,1705858263510,-707.04,0.00041095,31]
[312393791,1705858263521,-500.0,0.00041095,31]
[312393792,1705858263532,-500.0,0.00041095,31]
[312393793,1705858263542,-500.0,0.00041095,31]
[312393794,1705858263551,-500.0,0.00041095,31]
[312393795,1705858263562,-500.0,0.00041095,31]
[312393796,1705858263571,-500.0,0.00041095,31]
[312393797,1705858263581,-563.5,0.00041095,31]
[312393798,1705858263590,-500.0,0.00041095,31]
[312393799,1705858263599,-500.0,0.00041095,31]
[312393800,1705858263609,-534.21079786,0.00041095,31]
[312393801,1705858263619,-500.0,0.00041095,31]
[312393802,1705858263629,-500.0,0.00041095,31]
[312393803,1705858263639,-500.0,0.00041095,31]
[312393804,1705858263649,-500.0,0.00041095,31]
[312393805,1705858263660,-500.0,0.00041095,31]
[312393806,1705858263670,-607.75,0.00041095,30]
[312393807,1705858263680,-500.0,0.00041095,31]
[312393808,1705858263692,-502.55836046,0.00041095,31]
[312393809,1705858263702,-500.0,0.00041095,31]
[312393810,1705858263711,-542.07686609,0.00041095,31]
[312393811,1705858263721,-630.01,0.00041095,31]
[312393812,1705858263731,-500.0,0.00041095,31]
[312393813,1705858263740,-500.0,0.00041095,31]
[312393814,1705858263749,-500.0,0.00041095,31]
[312393815,1705858263758,-500.0,0.00041095,31]
[312393816,1705858263767,-500.0,0.00041095,31]
[312393817,1705858263776,-500.0,0.00041095,7]
[312393818,1705858263786,-500.0,0.00041095,31]
[312393819,1705858263795,-500.0,0.00041095,31]
[312393820,1705858263804,-500.0,0.00041095,31]
[312393821,1705858263813,-718.93,0.00041095,31]
[312393822,1705858263822,-500.0,0.00041095,31]
[312393823,1705858263832,-500.0,0.00041095,31]
[312393824,1705858263841,-500.0,0.00041095,31]
[312393825,1705858263850,-500.0,0.00041095,31]
[312393826,1705858263859,-500.0,0.00041095,31]
[312393827,1705858263868,-500.0,0.00041095,31]
[312393828,1705858263877,-713.35,0.00041095,31]
[312393829,1705858263886,-500.0,0.00041095,31]
[312393830,1705858263895,-500.0,0.00041095,30]
[312393831,1705858263905,-500.0,0.00041095,31]
[312393832,1705858263914,-500.0,0.00041095,31]
[312393833,1705858263923,-500.0,0.00041095,31]
[312393834,1705858263934,-500.0,0.00041095,31]
[312393835,1705858263944,-500.0,0.00041095,7]
[312393836,1705858263953,-500.0,0.00041095,31]
[312393837,1705858263964,-500.0,0.00041095,31]
[312393838,1705858263973,-500.0,0.00041095,31]
[312393839,1705858263982,-500.0,0.00041095,31]
[312393840,1705858263992,-500.0,0.00041095,31]
[312393841,1705858264001,-500.0,0.00041095,31]
[312393842,1705858264011,-542.93982226,0.00041095,31]
[312393843,1705858264021,-500.0,0.00041095,31]
[312393844,1705858264032,-500.0,0.00041095,31]
[312393845,1705858264050,-500.0,0.00041095,31]
[312393846,1705858264058,-500.0,0.00041095,31]
[312393847,1705858264069,-500.0,0.00041095,31]
[312393848,1705858264079,-500.0,0.00041095,31]
[312393849,1705858264090,-520.88200648,0.00041095,31]
[312393850,1705858264101,-605.12,0.00041095,31]
[312393851,1705858264110,-500.0,0.00041095,31]
[312393852,1705858264119,-500.0,0.00041095,31]
[312393853,1705858264129,-500.0,0.00041095,31]
[312393854,1705858264139,-500.0,0.00041095,31]
[312393855,1705858264149,-298.87728174,0.00041095,31]
[312393856,1705858264159,-500.0,0.00041095,31]
[312393857,1705858264169,-500.0,0.00041095,31]
[312393858,1705858264179,-500.0,0.00041095,31]
[312393859,1705858264189,-500.0,0.00041095,31]
[312393860,1705858264198,-500.0,0.00041095,31]
[312393861,1705858264207,-500.0,0.00041095,31]
[312393862,1705858264218,-500.0,0.00041095,31]
[312393863,1705858264228,-508.9644837,0.00041095,31]
[312393864,1705858264237,-500.0,0.00041095,31]
[312393865,1705858264247,-500.0,0.00041095,31]
[312393866,1705858264256,-500.0,0.00041095,31]
[312393867,1705858264266,-542.52,0.00041095,31]
[312393868,1705858264275,-500.0,0.00041095,31]
[312393869,1705858264285,-500.0,0.00041095,31]
[312393870,1705858264295,-500.0,0.00041095,31]
[312393871,1705858264305,-500.0,0.00041095,31]
[312393872,1705858264315,-781.08,0.00041095,31]
[312393873,1705858264326,-500.0,0.00041095,31]
[312393874,1705858264336,-1000.0,0.00041095,7]
[312393875,1705858264345,-500.0,0.00041095,31]
[312393876,1705858264354,-500.0,0.00041095,31]
[312393877,1705858264364,-500.0,0.00041095,31]
[312393878,1705858264373,-521.49,0.00041095,31]
[312393879,1705858264382,-304.78546858,0.00041095,31]
[312393880,1705858264391,-500.0,0.00041095,31]
[312393881,1705858264401,-500.0,0.00041095,31]
[312393882,1705858264411,-518.55,0.00041095,31]
[312393883,1705858264421,-671.59,0.00041095,31]
[312393884,1705858264430,-174.27188597,0.00041095,31]
[312393885,1705858264440,-500.0,0.00041095,31]
[312393886,1705858264450,-500.0,0.00041095,31]
[312393887,1705858264460,-500.0,0.00041095,31]
[312393888,1705858264471,-500.0,0.00041095,31]
[312393889,1705858264481,-500.0,0.00041095,31]
[312393890,1705858264491,-576.57,0.00041095,31]
[312393891,1705858264502,-401.52080626,0.00041095,31]
[312393892,1705858264514,-500.0,0.00041095,31]
[312393893,1705858264524,-500.0,0.00041095,31]
[312393894,1705858264534,-500.0,0.00041095,31]
[312393895,1705858264544,-500.0,0.00041095,31]
[312393896,1705858264554,-500.0,0.00041095,31]
[312393897,1705858264564,-500.0,0.00041095,31]
[312393898,1705858264575,-500.0,0.00041095,31]
[312393899,1705858264586,-500.0,0.00041095,31]
[312393900,1705858264595,-500.0,0.00041095,31]
[312393901,1705858264605,-500.0,0.00041095,31]
[312393902,1705858264616,-500.0,0.00041095,31]
[312393903,1705858264625,-500.0,0.00041095,31]
[312393904,1705858264636,-500.0,0.00041095,31]
[312393905,1705858264646,-500.0,0.00041095,31]
[312393906,1705858264655,-639.66,0.00041095,31]
[312393907,1705858264666,-500.0,0.00041095,31]
[312393908,1705858264675,-500.0,0.00041095,31]
[312393909,1705858264685,-500.0,0.00041095,31]
[312393910,1705858264695,-500.0,0.00041095,31]
[312393911,1705858264782,-500.0,0.00041095,31]
[312393912,1705858264793,-500.0,0.00041095,31]
[312393913,1705858264803,-500.0,0.00041095,31]
[312393914,1705858264813,-500.0,0.00041095,31]
[312393915,1705858264822,-500.0,0.00041095,31]
[312393916,1705858264831,-500.0,0.00041095,31]
[312393917,1705858264840,-354.72721957,0.00041095,31]
[312393918,1705858264850,-500.0,0.00041095,31]
[312393919,1705858264860,-500.0,0.00041095,31]
[312393920,1705858264870,-454.41054722,0.00041095,31]
[312393921,1705858264879,-500.0,0.00041095,31]
[312393922,1705858264890,-1027.90212978,0.00041095,2]
[312393923,1705858264899,-500.0,0.00041095,31]
[312393924,1705858264908,-500.0,0.00041095,31]
[312393925,1705858264918,-500.0,0.00041095,31]
[312393926,1705858264927,-426.76732399,0.00041095,31]
[312393927,1705858264936,-500.0,0.00041095,31]
[312393928,1705858264946,-500.0,0.00041095,31]
[312393929,1705858264955,-500.0,0.00041095,31]
[312393930,1705858264964,-500.0,0.00041095,31]
[312393931,1705858264974,-500.0,0.00041095,31]
[312393932,1705858264983,-500.0,0.00041095,31]
[312393933,1705858264993,-1042.19815078,0.00041095,31]
[312393934,1705858265002,-500.0,0.00041095,30]
[312393935,1705858265012,-500.0,0.00041095,31]
[312393936,1705858265021,-500.0,0.00041095,31]
[312393937,1705858265031,-500.0,0.00041095,31]
[312393938,1705858265042,-500.0,0.00041095,31]
[312393939,1705858265056,-500.0,0.00041095,31]
[312393940,1705858265065,-500.0,0.00041095,31]
[312393941,1705858265076,-500.0,0.00041095,31]
[312393942,1705858265086,-500.0,0.00041095,31]
[312393943,1705858265096,-500.0,0.00041095,31]
[312393944,1705858265105,-338.07927126,0.00041095,9]
[312393945,1705858265115,-501.9599149,0.00041095,31]
[312393946,1705858265126,-500.0,0.00041095,31]
[312393947,1705858265135,-500.0,0.00041095,31]
[312393948,1705858265145,-500.0,0.00041095,31]
[312393949,1705858265155,-500.0,0.00041095,31]
[312393950,1705858265165,-500.0,0.00041095,31]
[312393951,1705858265175,-314.32651479,0.00041095,2]
[312393952,1705858265185,-500.0,0.00041095,31]
[312393953,1705858265195,-665.96,0.00041095,31]
[312393954,1705858265204,-500.0,0.00041095,31]
[312393955,1705858265214,-500.0,0.00041095,31]
[312393956,1705858265224,-500.0,0.00041095,31]
[312393957,1705858265233,-606.4,0.00041095,31]
[312393958,1705858265243,-500.0,0.00041095,31]
[312393959,1705858265252,-500.0,0.00041095,31]
[312393960,1705858265262,-500.0,0.00041095,31]
[312393961,1705858265271,-500.0,0.00041095,31]
[312393962,1705858265280,-543.20549106,0.00041095,31]
[312393963,1705858265290,-500.0,0.00041095,31]
[312393964,1705858265299,-500.0,0.00041095,31]
[312393965,1705858265309,-500.0,0.00041095,31]
[312393966,1705858265318,-610.64,0.00041095,31]
[312393967,1705858265328,-500.0,0.00041095,31]
[312393968,1705858265338,-500.0,0.00041095,31]
[312393969,1705858265347,-500.0,0.00041095,31]
[312393970,1705858265357,-500.0,0.00041095,31]
[312393971,1705858265367,-619.69,0.00041095,31]
[312393972,1705858265377,-556.51,0.00041095,31]
[312393973,1705858265386,-1402.46,0.00041095,31]
[312393974,1705858265395,-500.0,0.00041095,31]
[312393975,1705858265405,-500.0,0.00041095,31]
[312393976,1705858265415,-804.15,0.00041095,31]
[312393977,1705858265424,-500.0,0.00041095,31]
[312393978,1705858265434,-248.58781472,0.00041095,31]
[312393979,1705858265445,-500.0,0.00041095,31]
[312393980,1705858265454,-500.0,0.00041095,31]
[312393981,1705858265464,-500.0,0.00041095,31]
[312393982,1705858265473,-500.0,0.00041095,31]
[312393983,1705858265483,-500.0,0.00041095,31]
[312393984,1705858265492,-500.0,0.00041095,31]
[312393985,1705858265502,-500.0,0.00041095,31]
[312393986,1705858265512,-500.0,0.00041095,31]
[312393987,1705858265522,-500.0,0.00041095,31]
[312393988,1705858265532,-500.0,0.00041095,31]
[312393989,1705858265542,-500.0,0.00041095,31]
[312393990,1705858265552,-500.0,0.00041095,31]
[312393991,1705858265561,-501.05101416,0.00041095,31]
[312393992,1705858265571,-500.0,0.00041095,31]
[312393993,1705858265580,-500.0,0.00041095,31]
[312393994,1705858265590,-500.0,0.00041095,31]
[312393995,1705858265600,-498.49976345,0.00041095,31]
[312393996,1705858265610,-500.0,0.00041095,31]
[312393997,1705858265619,-500.0,0.00041095,31]
[312393998,1705858265629,-500.0,0.00041095,31]
[312393999,1705858265639,-500.0,0.00041095,31]
[312394000,1705858265648,-500.0,0.00041095,31]
[312394001,1705858265658,-500.0,0.00041095,31]
[312394002,1705858265668,-500.0,0.00041095,31]
[312394003,1705858265677,-500.0,0.00041095,31]
[312394004,1705858265687,-500.0,0.00041095,31]
[312394005,1705858265697,-500.0,0.00041095,31]